fUST/lending_fUST_20250809
["ID","MTS","AMOUNT","RATE_DAILY","PERIOD"]
[378108500,1754734241328,-2196.39831117,0.00022177,2]
[378108501,1754734241337,-250.0,0.00022177,2]
[378108502,1754734241346,-250.0,0.00022177,2]
[378108503,1754734241355,-250.0,0.00022177,2]
[378108504,1754734241364,-250.0,0.00022177,2]
[378108505,1754734241373,-250.0,0.00022177,2]
[378108506,1754734241383,-151.0,0.00022177,2]
[378108507,1754734241392,-250.0,0.00022177,2]
[378108508,1754734241402,-151.0,0.00022177,2]
[378108509,1754734241411,-171.84618396,0.00022177,2]
[378108510,1754734241421,-151.0,0.00022177,2]
[378108511,1754734241430,-151.0,0.00022177,2]
[378108512,1754734241439,-151.0,0.00022177,2]
[378108513,1754734241448,-151.0,0.00022177,2]
[378108514,1754734241457,-151.0,0.00022177,2]
[378108515,1754734241466,-151.0,0.00022177,2]
[378108516,1754734241476,-151.0,0.00022177,2]
[378108517,1754734241485,-460.0,0.0002219,2]
[378108518,1754734241494,-460.0,0.0002219,2]
[378108519,1754734241504,-200.0,0.0002219,10]
[378108520,1754734241513,-460.0,0.0002219,2]
[378108521,1754734241522,-475.01661403,0.0002219,2]
[378108522,1754734241531,-460.0,0.0002219,2]
[378108523,1754734241541,-460.0,0.0002219,2]
[378108524,1754734241550,-460.0,0.0002219,2]
[378108525,1754734241559,-460.0,0.0002219,2]
[378108526,1754734241568,-464.79127628,0.0002219,2]
[378108527,1754734241578,-460.0,0.0002219,2]
[378108528,1754734241587,-460.0,0.0002219,2]
[378108529,1754734241597,-460.0,0.0002219,2]
[378108530,1754734241606,-470.40173547,0.0002219,2]
[378108531,1754734241616,-460.0,0.0002219,2]
[378108532,1754734241625,-460.0,0.0002219,2]
[378108533,1754734241635,-467.90353479,0.0002219,2]
[378108534,1754734241644,-315.51174705,0.0002219,2]
[378108535,1754734241654,-460.0,0.0002219,2]
[378108536,1754734241664,-460.0,0.0002219,2]
[378108537,1754734241673,-460.0,0.0002219,2]
[378108538,1754734241683,-460.0,0.0002219,2]
[378108539,1754734241692,-460.0,0.0002219,2]
[378108540,1754734241701,-460.0,0.0002219,2]
[378108541,1754734241710,-460.0,0.0002219,2]
[378108542,1754734241720,-460.0,0.0002219,2]
[378108543,1754734241729,-463.20214724,0.0002219,2]
[378108544,1754734241738,-460.0,0.0002219,2]
[378108545,1754734241748,-460.0,0.0002219,2]
[378108546,1754734241758,-460.0,0.0002219,2]
[378108547,1754734241767,-471.07,0.0002219,2]
[378108548,1754734241777,-367.74172098,0.0002219,2]
[378108549,1754734241786,-460.0,0.0002219,2]
[378108550,1754734241796,-460.0,0.0002219,2]
[378108551,1754734241805,-464.4967765,0.0002219,2]
[378108552,1754734241815,-460.0,0.0002219,2]
[378108553,1754734241825,-475.27009664,0.0002219,2]
[378108554,1754734241835,-179.26,0.0002219,2]
[378108555,1754734241844,-460.0,0.0002219,2]
[378108556,1754734241854,-460.0,0.0002219,2]
[378108557,1754734241864,-460.0,0.0002219,2]
[378108558,1754734241874,-380.0,0.0002219,2]
[378108559,1754734241884,-460.0,0.0002219,2]
[378108560,1754734241893,-463.48831897,0.0002219,2]
[378108561,1754734241902,-284.51203442,0.0002219,2]
[378108562,1754734241913,-460.0,0.0002219,2]
[378108563,1754734241923,-460.0,0.0002219,2]
[378108564,1754734241933,-460.0,0.0002219,2]
[378108565,1754734241942,-460.0,0.0002219,2]
[378108566,1754734241952,-460.0,0.0002219,2]
[378108567,1754734241962,-460.0,0.0002219,2]
[378108568,1754734241972,-460.0,0.0002219,2]
[378108569,1754734241981,-460.0,0.0002219,2]
[378108570,1754734241991,-311.07110951,0.0002219,2]
[378108571,1754734242000,-460.0,0.0002219,2]
[378108572,1754734242009,-500.0,0.0002219,2]
[378108573,1754734242019,-500.0,0.0002219,2]
[378108574,1754734242028,-428.08,0.0002219,2]
[378108575,1754734242038,-460.0,0.0002219,2]
[378108576,1754734242048,-466.53697395,0.0002219,2]
[378108577,1754734242057,-460.0,0.0002219,2]
[378108578,1754734242068,-460.0,0.0002219,2]
[378108579,1754734242077,-460.0,0.0002219,2]
[378108580,1754734242087,-460.0,0.0002219,2]
[378108581,1754734242097,-460.0,0.0002219,2]
[378108582,1754734242107,-460.0,0.0002219,2]
[378108583,1754734242118,-460.0,0.0002219,2]
[378108584,1754734242127,-460.0,0.0002219,2]
[378108585,1754734242137,-461.0227293,0.0002219,2]
[378108586,1754734242149,-460.0,0.0002219,2]
[378108587,1754734242158,-460.0,0.0002219,2]
[378108588,1754734242169,-460.0,0.0002219,2]
[378108589,1754734242179,-460.0,0.0002219,2]
[378108590,1754734242188,-460.0,0.0002219,2]
[378108591,1754734242198,-460.0,0.0002219,2]
[378108592,1754734242207,-362.12289487,0.0002219,2]
[378108593,1754734242216,-460.0,0.0002219,2]
[378108594,1754734242226,-460.0,0.0002219,2]
[378108595,1754734242235,-460.0,0.0002219,2]
[378108596,1754734242244,-460.0,0.0002219,2]
[378108597,1754734242253,-460.0,0.0002219,2]
[378108598,1754734242263,-460.0,0.0002219,2]
[378108599,1754734242273,-460.0,0.0002219,2]
[378108600,1754734242282,-460.0,0.0002219,2]
[378108601,1754734242292,-460.0,0.0002219,2]
[378108602,1754734242301,-460.0,0.0002219,2]
[378108603,1754734242310,-460.0,0.0002219,2]
[378108604,1754734242323,-688.56,0.0002219,2]
[378108605,1754734242454,-460.0,0.0002219,2]
[378108606,1754734242464,-460.0,0.0002219,2]
[378108607,1754734242474,-460.0,0.0002219,2]
[378108608,1754734242484,-460.0,0.0002219,2]
[378108609,1754734242494,-460.0,0.0002219,2]
[378108610,1754734242504,-460.0,0.0002219,2]
[378108611,1754734242513,-500.0,0.0002219,2]
[378108612,1754734242522,-460.0,0.0002219,2]
[378108613,1754734242532,-460.0,0.0002219,2]
[378108614,1754734242542,-935.34,0.0002219,2]
[378108615,1754734242552,-2942.37,0.0002219,2]
[378108616,1754734242561,-500.0,0.0002219,2]
[378108617,1754734242571,-462.91641525,0.0002219,2]
[378108618,1754734242581,-460.0,0.0002219,2]
[378108619,1754734242591,-955.01,0.0002219,2]
[378108620,1754734242600,-460.0,0.0002219,2]
[378108621,1754734242611,-460.0,0.0002219,2]
[378108622,1754734242620,-460.0,0.0002219,2]
[378108623,1754734242630,-461.82687398,0.0002219,2]
[378108624,1754734242640,-460.0,0.0002219,2]
[378108625,1754734242649,-460.0,0.0002219,2]
[378108626,1754734242659,-460.0,0.0002219,2]
[378108627,1754734242668,-460.0,0.0002219,2]
[378108628,1754734242678,-460.0,0.0002219,2]
[378108629,1754734242687,-257.84114625,0.0002219,2]
[378108630,1754734242697,-657.96,0.0002219,2]
[378108631,1754734242706,-578.59,0.0002219,2]
[378108632,1754734242715,-613.36,0.0002219,2]
[378108633,1754734242725,-5035.55,0.0002219,2]
[378108634,1754734242734,-566.75,0.0002219,2]
[378108635,1754734242744,-460.0,0.0002219,2]
[378108636,1754734242754,-460.0,0.0002219,2]
[378108637,1754734242763,-467.29004927,0.0002219,2]
[378108638,1754734242773,-500.96,0.0002219,2]
[378108639,1754734242782,-460.0,0.0002219,2]
[378108640,1754734242792,-460.0,0.0002219,2]
[378108641,1754734242801,-460.0,0.0002219,2]
[378108642,1754734242811,-461.4929794,0.0002219,2]
[378108643,1754734242820,-460.0,0.0002219,2]
[378108644,1754734242829,-460.0,0.0002219,2]
[378108645,1754734242839,-460.0,0.0002219,2]
[378108646,1754734242848,-460.0,0.0002219,2]
[378108647,1754734242857,-460.0,0.0002219,2]
[378108648,1754734242866,-460.0,0.0002219,2]
[378108649,1754734242875,-460.0,0.0002219,2]
[378108650,1754734242884,-460.0,0.0002219,2]
[378108651,1754734242894,-460.0,0.0002219,2]
[378108652,1754734242903,-460.0,0.0002219,2]
[378108653,1754734242913,-2494.96,0.0002219,2]
[378108654,1754734242922,-383.27943891,0.0002219,2]
[378108655,1754734242932,-460.0,0.0002219,2]
[378108656,1754734242941,-460.0,0.0002219,2]
[378108657,1754734242951,-460.0,0.0002219,2]
[378108658,1754734242960,-196.13065177,0.0002219,2]
[378108659,1754734242969,-2268.61,0.0002219,2]
[378108660,1754734242978,-1294.56,0.0002219,2]
[378108661,1754734242988,-1443.02,0.0002219,2]
[378108662,1754734242997,-566.23,0.0002219,2]
[378108663,1754734243006,-468.82679526,0.0002219,2]
[378108664,1754734243016,-460.0,0.0002219,2]
[378108665,1754734243025,-461.3802914,0.0002219,2]
[378108667,1754734243034,-460.0,0.0002219,2]
[378108668,1754734243043,-460.0,0.0002219,2]
[378108669,1754734243052,-460.0,0.0002219,2]
[378108670,1754734243062,-460.0,0.0002219,2]
[378108671,1754734243071,-460.0,0.0002219,2]
[378108672,1754734243081,-460.0,0.0002219,2]
[378108675,1754734243091,-678.73,0.0002219,2]
[378108676,1754734243100,-460.0,0.0002219,2]
[378108677,1754734243110,-460.0,0.0002219,2]
[378108678,1754734243119,-461.41853539,0.0002219,2]
[378108679,1754734243129,-460.0,0.0002219,2]
[378108680,1754734243139,-460.0,0.0002219,2]
[378108681,1754734243149,-460.0,0.0002219,2]
[378108682,1754734243159,-569.40625082,0.0002219,2]
[378108683,1754734243169,-2248.64,0.0002219,2]
[378108685,1754734243179,-460.0,0.0002219,2]
[378108686,1754734243188,-460.0,0.0002219,2]
[378108687,1754734243198,-460.6441149,0.0002219,2]
[378108689,1754734243207,-460.0,0.0002219,2]
[378108690,1754734243217,-460.0,0.0002219,2]
[378108691,1754734243226,-460.0,0.0002219,2]
[378108692,1754734243235,-460.0,0.0002219,2]
[378108693,1754734243245,-460.0,0.0002219,2]
[378108695,1754734243254,-1417.65,0.0002219,2]
[378108697,1754734243263,-460.0,0.0002219,2]
[378108699,1754734243272,-460.0,0.0002219,2]
[378108701,1754734243281,-460.0,0.0002219,2]
[378108703,1754734243291,-460.0,0.0002219,2]
[378108705,1754734243301,-460.0,0.0002219,2]
[378108707,1754734243310,-460.0,0.0002219,2]
[378108709,1754734243320,-460.0,0.0002219,2]
[378108711,1754734243329,-460.0,0.0002219,2]
[378108713,1754734243339,-460.0,0.0002219,2]
[378108714,1754734243347,-460.0,0.0002219,2]
[378108716,1754734243357,-781.76,0.0002219,2]
[378108718,1754734243366,-1524.01,0.0002219,2]
[378108720,1754734243375,-460.0,0.0002219,2]
[378108722,1754734243384,-460.0,0.0002219,2]
[378108724,1754734243393,-245.87622507,0.0002219,2]
[378108726,1754734243404,-460.0,0.0002219,2]
[378108727,1754734243416,-460.0,0.0002219,2]
[378108728,1754734243425,-460.0,0.0002219,2]
[378108730,1754734243434,-460.0,0.0002219,2]
[378108732,1754734243443,-460.0,0.0002219,2]
[378108734,1754734243453,-460.0,0.0002219,2]
[378108735,1754734243462,-460.0,0.0002219,2]
[378108736,1754734243471,-460.0,0.0002219,2]
[378108737,1754734243480,-462.75,0.0002219,2]
[378108738,1754734243489,-791.02,0.0002219,2]
[378108739,1754734243499,-460.0,0.0002219,2]
[378108741,1754734243508,-460.0,0.0002219,2]
[378108743,1754734243517,-460.0,0.0002219,2]
[378108744,1754734243527,-460.0,0.0002219,2]
[378108745,1754734243536,-460.0,0.0002219,2]
[378108746,1754734243546,-460.0,0.0002219,2]
[378108747,1754734243555,-460.0,0.0002219,2]
[378108748,1754734243564,-279.88179679,0.0002219,2]
[378108749,1754734243574,-603.88218085,0.0002219,2]
[378108750,1754734243583,-1756.2,0.0002219,2]
[378108751,1754734243593,-460.0,0.0002219,2]
[378108752,1754734243602,-460.0,0.0002219,2]
[378108753,1754734243612,-460.0,0.0002219,2]
[378108754,1754734243621,-460.0,0.0002219,2]
[378108755,1754734243632,-460.0,0.0002219,2]
[378108756,1754734243641,-630.12,0.0002219,2]
[378108757,1754734243651,-460.0,0.0002219,2]
[378108758,1754734243661,-460.0,0.0002219,2]
[378108759,1754734243670,-460.0,0.0002219,2]
[378108760,1754734243680,-576.67242267,0.0002219,2]
[378108761,1754734243689,-460.0,0.0002219,2]
[378108763,1754734243699,-460.0,0.0002219,2]
[378108764,1754734243710,-460.0,0.0002219,2]
[378108765,1754734243719,-477.97,0.0002219,2]
[378108766,1754734243729,-460.0,0.0002219,2]
[378108767,1754734243738,-462.12686628,0.0002219,2]
[378108768,1754734243748,-1403.87,0.0002219,2]
[378108769,1754734243757,-460.0,0.0002219,2]
[378108770,1754734243767,-460.0,0.0002219,2]
[378108771,1754734243776,-460.0,0.0002219,2]
[378108772,1754734243786,-460.0,0.0002219,2]
[378108773,1754734243796,-460.0,0.0002219,2]
[378108774,1754734243805,-460.0,0.0002219,2]
[378108775,1754734243815,-504.47,0.0002219,2]
[378108776,1754734243825,-460.0,0.0002219,2]
[378108777,1754734243834,-460.0,0.0002219,2]
[378108778,1754734243844,-460.0,0.0002219,2]
[378108779,1754734243853,-460.0,0.0002219,2]
[378108780,1754734243862,-460.0,0.0002219,2]
[378108781,1754734243871,-460.0,0.0002219,2]
[378108783,1754734243881,-996.57,0.0002219,2]
[378108785,1754734243890,-460.0,0.0002219,2]
[378108787,1754734243900,-196.0764329,0.0002219,2]
[378108789,1754734243910,-460.67036297,0.0002219,2]
[378108791,1754734243921,-460.0,0.0002219,2]
[378108792,1754734243931,-460.0,0.0002219,2]
[378108793,1754734243941,-460.0,0.0002219,2]
[378108794,1754734243950,-460.0,0.0002219,2]
[378108795,1754734243960,-460.0,0.0002219,2]
[378108796,1754734243970,-1047.63,0.0002219,2]
[378108797,1754734243979,-460.0,0.0002219,2]
[378108798,1754734243989,-460.0,0.0002219,2]
[378108799,1754734243997,-460.0,0.0002219,2]
[378108800,1754734244007,-460.0,0.0002219,2]
[378108801,1754734244016,-460.0,0.0002219,2]
[378108802,1754734244025,-460.0,0.0002219,2]
[378108803,1754734244035,-1066.63,0.0002219,2]
[378108804,1754734244045,-460.0,0.0002219,2]
[378108805,1754734244054,-460.0,0.0002219,2]
[378108806,1754734244063,-683.38,0.0002219,2]
[378108807,1754734244073,-460.0,0.0002219,2]
[378108808,1754734244082,-460.0,0.0002219,2]
[378108809,1754734244092,-460.0,0.0002219,2]
[378108810,1754734244101,-460.0,0.0002219,2]
[378108811,1754734244111,-460.0,0.0002219,2]
[378108812,1754734244120,-564.64,0.0002219,2]
[378108813,1754734244130,-460.0,0.0002219,2]
[378108814,1754734244140,-460.0,0.0002219,2]
[378108815,1754734244150,-460.0,0.0002219,2]
[378108816,1754734244160,-460.0,0.0002219,2]
[378108817,1754734244171,-1502.3,0.0002219,2]
[378108818,1754734244181,-979.62,0.0002219,2]
[378108819,1754734244192,-744.1,0.0002219,2]
[378108820,1754734244201,-460.0,0.0002219,2]
[378108821,1754734244211,-460.0,0.0002219,2]
[378108822,1754734244220,-460.0,0.0002219,2]
[378108823,1754734244229,-460.0,0.0002219,2]
[378108824,1754734244238,-460.0,0.00022191,2]
[378108825,1754734244248,-460.0,0.00022191,2]
[378108826,1754734244257,-460.0,0.00022191,2]
[378108827,1754734244267,-464.1149455,0.00022191,2]
[378108828,1754734244276,-434.59611317,0.00022191,2]
[378108829,1754734244285,-460.0,0.00022191,2]
[378108830,1754734244294,-396.29942411,0.00022191,2]
[378108831,1754734244304,-460.0,0.00022191,2]
[378108832,1754734244314,-460.0,0.00022191,2]
[378108833,1754734244323,-460.0,0.00022191,2]
[378108834,1754734244333,-460.0,0.00022191,2]
[378108835,1754734244342,-460.0,0.00022191,2]
[378108836,1754734244351,-460.0,0.00022191,2]
[378108837,1754734244361,-460.0,0.00022191,2]
[378108838,1754734244370,-474.15106749,0.00022191,2]
[378108839,1754734244380,-460.0,0.00022191,2]
[378108840,1754734244389,-460.0,0.00022191,2]
[378108841,1754734244398,-460.0,0.00022191,2]
[378108842,1754734244412,-460.0,0.00022191,2]
[378108843,1754734244421,-359.5197744,0.00022191,2]
[378108844,1754734244431,-355.79745518,0.00022191,2]
[378108845,1754734244440,-460.0,0.00022191,2]
[378108846,1754734244450,-460.0,0.00022191,2]
[378108847,1754734244459,-460.0,0.00022191,2]
[378108848,1754734244468,-460.0,0.00022191,2]
[378108849,1754734244478,-460.0,0.00022191,2]
[378108850,1754734244490,-460.0,0.00022191,2]
[378108851,1754734244499,-675.96,0.00022191,2]
[378108852,1754734244508,-460.0,0.00022191,2]
[378108853,1754734244517,-460.0,0.00022191,2]
[378108854,1754734244526,-470.23,0.00022191,2]
[378108855,1754734244535,-460.0,0.00022191,2]
[378108856,1754734244544,-460.0,0.00022191,2]
[378108857,1754734244553,-460.0,0.00022191,2]
[378108858,1754734244562,-467.07152766,0.00022191,2]
[378108859,1754734244572,-460.0,0.00022191,2]
[378108860,1754734244581,-460.0,0.00022191,2]
[378108861,1754734244590,-500.47,0.00022191,2]
[378108862,1754734244599,-460.0,0.00022191,2]
[378108863,1754734244608,-460.12553484,0.00022191,2]
[378108864,1754734244617,-460.0,0.00022191,2]
[378108865,1754734244626,-460.0,0.00022191,2]
[378108866,1754734244636,-460.0,0.00022191,2]
[378108867,1754734244646,-927.73,0.00022191,2]
[378108868,1754734244655,-460.0,0.00022191,2]
[378108869,1754734244665,-466.21449325,0.00022191,2]
[378108870,1754734244675,-483.37766896,0.00022191,2]
[378108871,1754734244684,-460.0,0.00022191,2]
[378108872,1754734244693,-460.0,0.00022191,2]
[378108873,1754734244703,-460.0,0.00022191,2]
[378108874,1754734244713,-432.52583897,0.00022191,2]
[378108875,1754734244722,-460.0,0.00022191,2]
[378108876,1754734244732,-463.09949068,0.00022191,2]
[378108877,1754734244741,-691.32161628,0.00022191,2]
[378108878,1754734244751,-2765.2864651,0.00022191,2]
[378108879,1754734244760,-6215.67265193,0.00022191,2]
[378108880,1754734244770,-460.0,0.00022191,2]
[378108881,1754734244779,-462.19323194,0.00022191,2]
[378108882,1754734244789,-460.0,0.00022191,2]
[378108883,1754734244798,-460.0,0.00022191,2]
[378108884,1754734244808,-460.0,0.00022191,2]
[378108885,1754734244817,-460.0,0.00022191,2]
[378108886,1754734244826,-575.50982013,0.00022191,2]
[378108887,1754734244836,-460.0,0.00022191,2]
[378108888,1754734244845,-460.0,0.00022191,2]
[378108889,1754734244855,-463.98156226,0.00022191,2]
[378108890,1754734244864,-878.18,0.00022191,2]
[378108891,1754734244874,-765.1,0.00022191,2]
[378108892,1754734244883,-460.0,0.00022191,2]
[378108893,1754734244893,-3546.34615272,0.00022191,2]
[378108894,1754734244903,-460.0,0.00022191,2]
[378108895,1754734244913,-460.0,0.00022191,2]
[378108896,1754734244923,-460.0,0.00022191,2]
[378108897,1754734244933,-530.236,0.00022245,2]
[378108898,1754734244942,-160.0,0.00022245,2]
[378108899,1754734244950,-160.0,0.00022245,2]
[378108900,1754734244960,-160.0,0.00022252,2]
[378108901,1754734244969,-312.16666667,0.00022252,2]
[378108902,1754734244978,-842.95011917,0.00022252,2]
[378108903,1754734244989,-231.92402426,0.00022252,2]
[378108904,1754734244998,-215.40758176,0.00022252,2]
[378108905,1754734245008,-160.0,0.00022252,2]
[378108906,1754734245017,-216.61183532,0.00022252,2]
[378108907,1754734245027,-160.0,0.00022252,2]
[378108908,1754734245036,-160.0,0.00022252,2]
[378108909,1754734245046,-12666.14847857,0.00022252,2]
[378108910,1754734245055,-461.55179734,0.00022252,2]
[378108911,1754734245065,-160.0,0.00022253,2]
[378108912,1754734245075,-160.0,0.00022255,2]
[378108913,1754734245084,-200.0,0.0002234,15]
[378108914,1754734245093,-200.0,0.0002234,15]
[378108915,1754734245103,-200.0,0.0002234,15]
[378108916,1754734245112,-200.0,0.0002234,15]
[378108917,1754734245123,-200.0,0.0002234,15]
[378108918,1754734245132,-2857.26,0.00022449,2]
[378108919,1754734245142,-313.71214412,0.0002246,2]
[378108920,1754734245151,-466.82979152,0.00022464,2]
[378108921,1754734245163,-460.0,0.00022464,2]
[378108922,1754734245172,-460.0,0.00022464,2]
[378108923,1754734245181,-460.0,0.00022464,2]
[378108924,1754734245190,-460.0,0.00022464,2]
[378108925,1754734245200,-464.28318477,0.00022464,2]
[378108926,1754734245210,-464.00773258,0.00022464,2]
[378108927,1754734245219,-460.0,0.00022464,2]
[378108928,1754734245229,-460.0,0.00022464,2]
[378108929,1754734245341,-471.07,0.00022464,2]
[378108930,1754734245365,-460.0,0.00022464,2]
[378108931,1754734245374,-481.41,0.00022464,2]
[378108932,1754734245383,-461.20424097,0.00022464,2]
[378108933,1754734245393,-342.51451134,0.00022464,2]
[378108934,1754734245402,-460.0,0.00022464,2]
[378108935,1754734245420,-460.0,0.00022464,2]
[378108936,1754734245429,-460.0,0.00022464,2]
[378108937,1754734245439,-356.1860078,0.00022464,2]
[378108938,1754734245448,-460.0,0.00022464,2]
[378108939,1754734245457,-460.0,0.00022464,2]
[378108940,1754734245466,-460.0,0.00022464,2]
[378108941,1754734245475,-460.0,0.00022464,2]
[378108942,1754734245485,-473.86010661,0.00022464,2]
[378108943,1754734245494,-460.0,0.00022464,2]
[378108944,1754734245506,-460.0,0.00022464,2]
[378108945,1754734245515,-460.0,0.00022464,2]
[378108946,1754734245525,-460.0,0.00022464,2]
[378108947,1754734245534,-460.0,0.00022464,2]
[378108948,1754734245544,-460.0,0.00022464,2]
[378108949,1754734245554,-688.56,0.00022464,2]
[378108950,1754734245563,-460.0,0.00022464,2]
[378108951,1754734245574,-460.0,0.00022464,2]
[378108952,1754734245584,-460.0,0.00022464,2]
[378108953,1754734245593,-935.34,0.00022464,2]
[378108954,1754734245602,-468.86349631,0.00022464,2]
[378108955,1754734245612,-460.0,0.00022464,2]
[378108956,1754734245621,-2942.37,0.00022464,2]
[378108957,1754734245631,-955.01,0.00022464,2]
[378108958,1754734245641,-460.0,0.00022464,2]
[378108959,1754734245650,-460.0,0.00022464,2]
[378108960,1754734245659,-460.0,0.00022464,2]
[378108961,1754734245670,-460.0,0.00022464,2]
[378108962,1754734245679,-462.14664678,0.00022464,2]
[378108963,1754734245688,-657.96,0.00022464,2]
[378108964,1754734245698,-578.59,0.00022464,2]
[378108965,1754734245707,-613.36,0.00022464,2]
[378108966,1754734245717,-5035.55,0.00022464,2]
[378108967,1754734245726,-566.75,0.00022464,2]
[378108968,1754734245736,-460.0,0.00022464,2]
[378108969,1754734245746,-500.96,0.00022464,2]
[378108970,1754734245755,-460.0,0.00022464,2]
[378108971,1754734245766,-460.0,0.00022464,2]
[378108972,1754734245776,-460.0,0.00022464,2]
[378108973,1754734245785,-460.0,0.00022464,2]
[378108974,1754734245795,-460.0,0.00022464,2]
[378108975,1754734245804,-460.0,0.00022464,2]
[378108976,1754734245814,-460.0,0.00022464,2]
[378108977,1754734245823,-460.0,0.00022464,2]
[378108978,1754734245833,-460.0,0.00022464,2]
[378108979,1754734245842,-2494.96,0.00022464,2]
[378108980,1754734245851,-460.0,0.00022464,2]
[378108981,1754734245861,-460.0,0.00022464,2]
[378108982,1754734245870,-2268.61,0.00022464,2]
[378108983,1754734245880,-1294.56,0.00022464,2]
[378108984,1754734245890,-1443.02,0.00022464,2]
[378108985,1754734245899,-566.23,0.00022464,2]
[378108986,1754734245908,-460.0,0.00022464,2]
[378108987,1754734245921,-460.0,0.00022464,2]
[378108988,1754734245930,-460.0,0.00022464,2]
[378108989,1754734245940,-460.0,0.00022464,2]
[378108990,1754734245950,-678.73,0.00022464,2]
[378108991,1754734245959,-411.16229983,0.00022464,2]
[378108992,1754734245969,-460.0,0.00022464,2]
[378108993,1754734245978,-2248.64,0.00022464,2]
[378108994,1754734245988,-460.0,0.00022464,2]
[378108995,1754734245997,-463.99054713,0.00022464,2]
[378108996,1754734246007,-460.0,0.00022464,2]
[378108997,1754734246017,-460.0,0.00022464,2]
[378108998,1754734246026,-1417.65,0.00022464,2]
[378108999,1754734246036,-462.97045681,0.00022464,2]
[378109001,1754734246045,-460.0,0.00022464,2]
[378109002,1754734246055,-465.24769755,0.00022464,2]
[378109003,1754734246064,-460.0,0.00022464,2]
[378109004,1754734246073,-781.76,0.00022464,2]
[378109005,1754734246082,-1524.01,0.00022464,2]
[378109006,1754734246092,-460.0,0.00022464,2]
[378109007,1754734246101,-460.0,0.00022464,2]
[378109008,1754734246111,-460.0,0.00022464,2]
[378109009,1754734246120,-460.0,0.00022464,2]
[378109010,1754734246129,-460.0,0.00022464,2]
[378109011,1754734246139,-462.75,0.00022464,2]
[378109012,1754734246148,-791.02,0.00022464,2]
[378109013,1754734246158,-460.0,0.00022464,2]
[378109014,1754734246169,-460.0,0.00022464,2]
[378109015,1754734246178,-460.0,0.00022464,2]
[378109016,1754734246188,-466.73,0.00022464,2]
[378109017,1754734246197,-1756.2,0.00022464,2]
[378109018,1754734246206,-468.29935006,0.00022464,2]
[378109019,1754734246215,-460.0,0.00022464,2]
[378109020,1754734246224,-460.0,0.00022464,2]
[378109021,1754734246233,-460.0,0.00022464,2]
[378109022,1754734246243,-630.12,0.00022464,2]
[378109023,1754734246252,-460.0,0.00022464,2]
[378109024,1754734246261,-460.0,0.00022464,2]
[378109026,1754734246270,-460.0,0.00022464,2]
[378109028,1754734246279,-151.0,0.00022464,7]
[378109030,1754734246288,-464.19644692,0.00022464,2]
[378109032,1754734246297,-477.97,0.00022464,2]
[378109034,1754734246307,-460.0,0.00022464,2]
[378109036,1754734246316,-1403.87,0.00022464,2]
[378109038,1754734246325,-460.0,0.00022464,2]
[378109040,1754734246335,-460.0,0.00022464,2]